fUSD/lending_fUSD_20250306
["ID","MTS","AMOUNT","RATE_DAILY","PERIOD"]
[355544522,1741254633614,-500.0,0.00011794,2]
[355544523,1741254633625,-500.0,0.00011794,2]
[355544524,1741254633636,-568.06,0.00011794,2]
[355544525,1741254633647,-3358.68,0.00011794,2]
[355544526,1741254633656,-2086.3,0.00011794,2]
[355544527,1741254633666,-500.0,0.00011794,2]
[355544528,1741254633676,-1463.75,0.00011794,2]
[355544529,1741254633686,-500.0,0.00011794,2]
[355544530,1741254633695,-500.0,0.00011794,2]
[355544531,1741254633706,-1943.23,0.00011794,2]
[355544532,1741254633715,-500.0,0.00011794,2]
[355544533,1741254633725,-500.0,0.00011794,2]
[355544534,1741254633735,-500.0,0.00011794,2]
[355544535,1741254633744,-822.34,0.00011794,2]
[355544536,1741254633754,-1411.18,0.00011794,2]
[355544537,1741254633763,-500.0,0.00011794,2]
[355544538,1741254633773,-500.0,0.00011794,2]
[355544539,1741254633782,-1397.38,0.00011794,2]
[355544540,1741254633791,-500.0,0.00011794,2]
[355544541,1741254633801,-2866.45,0.00011794,2]
[355544542,1741254633811,-500.0,0.00011794,2]
[355544543,1741254633820,-500.0,0.00011794,2]
[355544544,1741254633831,-3256.74,0.00011794,2]
[355544545,1741254633840,-2536.78,0.00011794,2]
[355544546,1741254633850,-500.0,0.00011794,2]
[355544547,1741254633860,-754.01,0.00011794,2]
[355544548,1741254633870,-271.97361497,0.00011794,2]
[355544549,1741254633880,-500.0,0.00011794,2]
[355544550,1741254633890,-598.34,0.00011794,2]
[355544551,1741254633900,-500.0,0.00011794,2]
[355544552,1741254633910,-500.0,0.00011794,2]
[355544553,1741254633920,-500.0,0.00011794,2]
[355544554,1741254633930,-612.13,0.00011794,2]
[355544555,1741254633940,-500.0,0.00011794,2]
[355544556,1741254633949,-302.71742796,0.00011794,2]
[355544557,1741254633958,-1075.93,0.00011794,2]
[355544558,1741254633968,-500.0,0.00011794,2]
[355544559,1741254633978,-739.85,0.00011794,2]
[355544560,1741254633988,-500.0,0.00011794,2]
[355544561,1741254633998,-500.0,0.00011794,2]
[355544562,1741254634010,-500.0,0.00011794,2]
[355544563,1741254634020,-2613.71,0.00011794,2]
[355544564,1741254634029,-1647.48,0.00011794,2]
[355544565,1741254634041,-500.0,0.00011794,2]
[355544566,1741254634051,-500.0,0.00011794,2]
[355544567,1741254634060,-500.0,0.00011794,2]
[355544568,1741254634071,-807.56,0.00011794,2]
[355544569,1741254634081,-764.81,0.00011794,2]
[355544570,1741254634091,-925.31,0.00011794,2]
[355544571,1741254634101,-1340.3,0.00011794,2]
[355544572,1741254634111,-3725.3,0.00011794,2]
[355544573,1741254634120,-500.0,0.00011794,2]
[355544574,1741254634130,-500.0,0.00011794,2]
[355544575,1741254634140,-500.0,0.00011794,2]
[355544576,1741254634149,-500.0,0.00011794,2]
[355544577,1741254634159,-604.28,0.00011794,2]
[355544578,1741254634169,-500.0,0.00011794,2]
[355544579,1741254634179,-500.0,0.00011794,2]
[355544580,1741254634188,-1680.74,0.00011794,2]
[355544581,1741254634198,-500.0,0.00011794,2]
[355544582,1741254634209,-500.0,0.00011794,2]
[355544583,1741254634219,-1529.92,0.00011794,2]
[355544584,1741254634228,-500.0,0.00011794,2]
[355544585,1741254634237,-500.0,0.00011794,2]
[355544586,1741254634247,-2144.91,0.00011794,2]
[355544587,1741254634256,-1590.98,0.00011794,2]
[355544588,1741254634266,-500.0,0.00011794,2]
[355544589,1741254634275,-500.0,0.00011794,2]
[355544590,1741254634285,-1286.81,0.00011794,2]
[355544591,1741254634294,-500.0,0.00011794,2]
[355544592,1741254634304,-500.0,0.00011794,2]
[355544593,1741254634314,-1273.72,0.00011794,2]
[355544594,1741254634324,-648.86,0.00011794,2]
[355544595,1741254634333,-1821.97,0.00011794,2]
[355544596,1741254634343,-842.56,0.00011794,2]
[355544597,1741254634352,-502.18839893,0.00011794,2]
[355544598,1741254634361,-500.0,0.00011794,2]
[355544599,1741254634371,-500.0,0.00011794,2]
[355544600,1741254634381,-1291.93,0.00011794,2]
[355544601,1741254634391,-500.0,0.00011794,2]
[355544602,1741254634401,-3261.55,0.00011794,2]
[355544603,1741254634411,-500.0,0.00011794,2]
[355544604,1741254634421,-500.0,0.00011794,2]
[355544605,1741254634431,-961.5,0.00011794,2]
[355544606,1741254634441,-500.0,0.00011794,2]
[355544607,1741254634450,-1529.75,0.00011794,2]
[355544608,1741254634461,-500.0,0.00011794,2]
[355544609,1741254634470,-1426.51,0.00011794,2]
[355544610,1741254634480,-500.0,0.00011794,2]
[355544611,1741254634490,-500.0,0.00011794,2]
[355544612,1741254634499,-500.0,0.00011794,2]
[355544613,1741254634508,-500.0,0.00011794,2]
[355544614,1741254634518,-381.9796704,0.00011794,2]
[355544615,1741254634528,-500.0,0.00011794,2]
[355544616,1741254634538,-500.0,0.00011794,2]
[355544617,1741254634548,-500.0,0.00011794,2]
[355544618,1741254634557,-500.0,0.00011794,2]
[355544619,1741254634568,-551.52,0.00011794,2]
[355544620,1741254634577,-1250.16,0.00011794,2]
[355544621,1741254634586,-605.99582082,0.00011794,2]
[355544622,1741254634596,-500.0,0.00011794,2]
[355544623,1741254634605,-500.0,0.00011794,2]
[355544624,1741254634615,-515.06,0.00011794,2]
[355544625,1741254634625,-500.0,0.00011794,2]
[355544626,1741254634635,-1356.78,0.00011794,2]
[355544627,1741254634645,-500.0,0.00011794,2]
[355544628,1741254634654,-1637.08,0.00011794,2]
[355544629,1741254634663,-616.94747247,0.00011794,2]
[355544630,1741254634673,-500.0,0.00011794,2]
[355544631,1741254634683,-2403.8,0.00011794,2]
[355544632,1741254634693,-1381.66,0.00011794,2]
[355544633,1741254634702,-520.31609077,0.00011794,2]
[355544634,1741254634711,-7415.75,0.00011794,2]
[355544635,1741254634721,-500.0,0.00011794,2]
[355544636,1741254634731,-500.0,0.00011794,2]
[355544637,1741254634740,-1400.44,0.00011794,2]
[355544638,1741254634749,-4061.0,0.00011794,2]
[355544639,1741254634759,-501.30120195,0.00011794,2]
[355544640,1741254634769,-326.28530929,0.00011794,2]
[355544641,1741254634778,-500.0,0.00011794,2]
[355544642,1741254634787,-559.31,0.00011794,2]
[355544643,1741254634797,-500.0,0.00011794,2]
[355544644,1741254634807,-1031.65,0.00011794,2]
[355544645,1741254634816,-500.0,0.00011794,2]
[355544646,1741254634826,-500.0,0.00011794,2]
[355544647,1741254634835,-500.0,0.00011794,2]
[355544648,1741254634844,-500.0,0.00011794,2]
[355544649,1741254634854,-500.0,0.00011794,2]
[355544650,1741254634863,-422.50322595,0.00011794,2]
[355544651,1741254634873,-1310.17,0.00011794,2]
[355544652,1741254634883,-1084.89,0.00011794,2]
[355544653,1741254634893,-500.0,0.00011794,2]
[355544654,1741254634902,-715.35,0.00011794,2]
[355544655,1741254634911,-767.34,0.00011794,2]
[355544656,1741254634921,-500.0,0.00011794,2]
[355544657,1741254634930,-1336.65,0.00011794,2]
[355544658,1741254634939,-2663.43,0.00011794,2]
[355544659,1741254634949,-840.85,0.00011794,2]
[355544660,1741254634959,-500.0,0.00011794,2]
[355544661,1741254634968,-500.0,0.00011794,2]
[355544662,1741254634977,-250.01661771,0.00011794,2]
[355544663,1741254634987,-965.43,0.00011794,2]
[355544664,1741254634998,-681.09,0.00011794,2]
[355544665,1741254635010,-622.87,0.00011794,2]
[355544666,1741254635019,-628.92,0.00011794,2]
[355544667,1741254635029,-500.0,0.00011794,2]
[355544668,1741254635039,-175.29045356,0.00011794,2]
[355544669,1741254635048,-504.8516626,0.00011794,2]
[355544670,1741254635058,-1358.66,0.00011794,2]
[355544671,1741254635067,-1760.67,0.00011794,2]
[355544672,1741254635077,-1170.43,0.00011794,2]
[355544673,1741254635087,-500.0,0.00011794,2]
[355544674,1741254635096,-500.0,0.00011794,2]
[355544675,1741254635106,-500.0,0.00011794,2]
[355544676,1741254635115,-500.0,0.00011794,2]
[355544677,1741254635124,-500.0,0.00011794,2]
[355544678,1741254635134,-1040.46,0.00011794,2]
[355544679,1741254635143,-476.83162823,0.00011794,2]
[355544680,1741254635152,-520.51,0.00011794,2]
[355544681,1741254635161,-4562.25,0.00011794,2]
[355544682,1741254635171,-500.0,0.00011794,2]
[355544683,1741254635182,-684.61,0.00011794,2]
[355544684,1741254635191,-505.45908108,0.00011794,2]
[355544685,1741254635200,-1256.03,0.00011794,2]
[355544686,1741254635209,-500.0,0.00011794,2]
[355544687,1741254635219,-500.0,0.00011794,2]
[355544688,1741254635228,-500.0,0.00011794,2]
[355544689,1741254635237,-780.59,0.00011794,2]
[355544690,1741254635247,-645.58562675,0.00011794,2]
[355544691,1741254635256,-1459.17,0.00011794,2]
[355544692,1741254635265,-500.0,0.00011794,2]
[355544693,1741254635275,-579.58,0.00011794,2]
[355544694,1741254635284,-546.85,0.00011794,2]
[355544695,1741254635294,-500.0,0.00011794,2]
[355544696,1741254635304,-500.0,0.00011795,2]
[355544697,1741254635313,-500.0,0.00011795,2]
[355544698,1741254635322,-500.0,0.00011795,2]
[355544699,1741254635332,-500.0,0.00011795,2]
[355544700,1741254635341,-500.0,0.00011795,2]
[355544701,1741254635350,-500.0,0.00011795,2]
[355544702,1741254635360,-277.84,0.00011795,2]
[355544703,1741254635369,-500.0,0.00011795,2]
[355544704,1741254635378,-152.55,0.00011795,2]
[355544705,1741254635388,-340.21806809,0.00011795,2]
[355544706,1741254635398,-500.0,0.00011795,2]
[355544707,1741254635408,-237.49,0.00011795,2]
[355544708,1741254635418,-441.06,0.00011795,2]
[355544709,1741254635427,-2327.379,0.00011795,2]
[355544710,1741254635437,-329.29,0.00011795,2]
[355544711,1741254635446,-272.28059853,0.00011795,2]
[355544712,1741254635456,-438.15,0.00011795,2]
[355544713,1741254635466,-32.87461052,0.00011795,2]
[355544714,1741254635483,-348.6403717,0.00011795,2]
[355544715,1741254635492,-350.0,0.00011795,2]
[355544716,1741254635502,-500.0,0.00011795,2]
[355544717,1741254635511,-500.0,0.00011795,2]
[355544718,1741254635521,-393.49763413,0.00011795,2]
[355544719,1741254635530,-500.0,0.00011795,2]
[355544720,1741254635541,-500.0,0.00011795,2]
[355544721,1741254635551,-633.53,0.00011795,2]
[355544722,1741254635561,-645.41957535,0.00011795,2]
[355544723,1741254635571,-500.0,0.00011795,2]
[355544724,1741254635581,-500.0,0.00011795,2]
[355544725,1741254635592,-500.0,0.00011795,2]
[355544726,1741254635602,-500.0,0.00011795,2]
[355544727,1741254635611,-500.0,0.00011795,2]
[355544728,1741254635621,-500.0,0.00011795,2]
[355544729,1741254635630,-500.0,0.00011795,2]
[355544730,1741254635641,-500.0,0.00011795,2]
[355544731,1741254635651,-500.0,0.00011795,2]
[355544732,1741254635661,-500.0,0.00011795,2]
[355544733,1741254635670,-500.0,0.00011795,2]
[355544734,1741254635679,-500.0,0.00011795,2]
[355544735,1741254635689,-500.0,0.00011795,2]
[355544736,1741254635699,-371.56383332,0.00011795,2]
[355544737,1741254635708,-500.0,0.00011795,2]
[355544738,1741254635717,-500.0,0.00011795,2]
[355544739,1741254635726,-500.0,0.00011795,2]
[355544740,1741254635736,-614.76,0.00011795,2]
[355544741,1741254635745,-500.0,0.00011795,2]
[355544742,1741254635755,-500.0,0.00011795,2]
[355544743,1741254635765,-500.0,0.00011795,2]
[355544744,1741254635774,-500.0,0.00011795,2]
[355544745,1741254635784,-500.0,0.00011795,2]
[355544746,1741254635793,-500.0,0.00011795,2]
[355544747,1741254635803,-500.0,0.00011795,2]
[355544748,1741254635812,-152.726405,0.00011795,2]
[355544749,1741254635822,-500.0,0.00011795,2]
[355544750,1741254635831,-522.31,0.00011795,2]
[355544751,1741254635841,-500.0,0.00011795,2]
[355544752,1741254635850,-500.0,0.00011795,2]
[355544753,1741254635859,-500.0,0.00011795,2]
[355544754,1741254635869,-500.0,0.00011795,2]
[355544755,1741254635878,-621.55309493,0.00011795,2]
[355544756,1741254635888,-500.0,0.00011795,2]
[355544757,1741254635899,-500.0,0.00011795,2]
[355544758,1741254635908,-500.0,0.00011795,2]
[355544759,1741254635917,-500.0,0.00011795,2]
[355544760,1741254635927,-500.0,0.00011795,2]
[355544761,1741254635936,-505.9031886,0.00011795,2]
[355544762,1741254635944,-500.0,0.00011795,2]
[355544763,1741254635953,-500.0,0.00011795,2]
[355544764,1741254635962,-500.0,0.00011795,2]
[355544765,1741254635971,-500.0,0.00011795,2]
[355544766,1741254635980,-500.0,0.00011795,2]
[355544767,1741254635989,-512.55182746,0.00011795,2]
[355544768,1741254635999,-500.0,0.00011795,2]
[355544769,1741254636008,-500.0,0.00011795,2]
[355544770,1741254636018,-500.0,0.00011795,2]
[355544771,1741254636027,-1140.79,0.00011795,2]
[355544772,1741254636037,-538.1,0.00011795,2]
[355544773,1741254636047,-500.0,0.00011795,2]
[355544774,1741254636056,-151.0,0.00011795,2]
[355544775,1741254636065,-151.0,0.00011795,2]
[355544776,1741254636076,-1165.73,0.00011795,2]
[355544777,1741254636087,-500.0,0.00011795,2]
[355544778,1741254636096,-1756.52,0.00011795,2]
[355544779,1741254636105,-500.0,0.00011795,2]
[355544780,1741254636114,-996.6,0.00011795,2]
[355544781,1741254636123,-500.0,0.00011795,2]
[355544782,1741254636133,-500.0,0.00011795,2]
[355544783,1741254636142,-500.0,0.00011795,2]
[355544784,1741254636152,-1813.47,0.00011795,2]
[355544785,1741254636161,-500.0,0.00011795,2]
[355544786,1741254636170,-11659.9,0.00011795,2]
[355544787,1741254636180,-632.85228383,0.00011795,2]
[355544788,1741254636190,-500.0,0.00011795,2]
[355544789,1741254636199,-500.0,0.00011795,2]
[355544790,1741254636208,-826.01,0.00011795,2]
[355544791,1741254636218,-6422.37,0.00011795,2]
[355544792,1741254636227,-994.01,0.00011795,2]
[355544793,1741254636239,-500.0,0.00011795,2]
[355544794,1741254636250,-500.0,0.00011795,2]
[355544795,1741254636263,-500.0,0.00011795,2]
[355544796,1741254636276,-1623.72,0.00011795,2]
[355544797,1741254636289,-9879.89,0.00011795,2]
[355544798,1741254636300,-500.0,0.00011795,2]
[355544799,1741254636309,-665.8,0.00011795,2]
[355544800,1741254636320,-500.0,0.00011795,2]
[355544801,1741254636330,-500.0,0.00011795,2]
[355544802,1741254636342,-557.64,0.00011795,2]
[355544803,1741254636354,-151.0,0.00011795,2]
[355544804,1741254636365,-2542.44,0.00011795,2]
[355544805,1741254636376,-500.0,0.00011795,2]
[355544806,1741254636390,-1000.0,0.00011795,2]
[355544807,1741254636402,-500.0,0.00011795,2]
[355544808,1741254636414,-2262.75,0.00011795,2]
[355544809,1741254636427,-500.0,0.00011795,2]
[355544810,1741254636438,-1174.15,0.00011795,2]
[355544811,1741254636449,-1013.87,0.00011795,2]
[355544812,1741254636461,-205.89804,0.00011795,2]
[355544813,1741254636472,-500.0,0.00011795,2]
[355544814,1741254636482,-503.81144075,0.00011795,2]
[355544815,1741254636492,-1001.66,0.00011795,2]
[355544816,1741254636504,-511.46,0.00011795,2]
[355544817,1741254636517,-500.0,0.00011795,2]
[355544818,1741254636528,-1614.44,0.00011795,2]
[355544819,1741254636540,-4665.05,0.00011795,2]
[355544820,1741254636551,-1154.0,0.00011795,2]
[355544821,1741254636562,-200.0,0.00011796,2]
[355544822,1741254636574,-698.72009,0.00011796,2]
[355544823,1741254636586,-1180.805,0.00011797,2]
[355544824,1741254636598,-430.38,0.000118,2]
[355544825,1741254636610,-400.0,0.000118,4]
[355544826,1741254636622,-375.51395471,0.000118,2]
[355544827,1741254636635,-200.0,0.00011805,2]
[355544828,1741254636647,-1379.91849443,0.00011828,2]
[355544829,1741254636660,-751.99552745,0.00011879,2]
[355544830,1741254636672,-150.73577029,0.00011896,2]
[355544831,1741254636683,-497.70814929,0.00011899,2]
[355544832,1741254636694,-16887.71177581,0.000119,2]
[355544833,1741254636707,-777.67,0.000119,2]
[355544834,1741254636717,-368.0,0.000119,2]
[355544835,1741254636729,-942.0,0.000119,2]
[355544836,1741254636740,-900.0,0.000119,4]
[355544837,1741254636751,-2820.54587139,0.000119,2]
[355544838,1741254636762,-2820.54587124,0.00011934,2]
[355544839,1741254636773,-158.12184812,0.00011936,2]
[355544840,1741254636785,-44489.0,0.00011954,2]
[355544841,1741254636797,-454.6670271,0.00011962,2]
[355544842,1741254636809,-1379.91849443,0.00011962,2]
[355544843,1741254636820,-2820.54587124,0.00011969,2]
[355544844,1741254636831,-747.37612005,0.00011969,2]
[355544845,1741254636843,-1005.0,0.00012,3]
[355544846,1741254636853,-684.5,0.00012,2]
[355544847,1741254636863,-1011.38,0.00012,5]
[355544848,1741254636874,-500.0,0.00012,5]
[355544849,1741254636885,-1762.5,0.00012,2]
[355544850,1741254636897,-661.03106848,0.00012,2]
[355544851,1741254636909,-2820.54587124,0.00012003,2]
[355544852,1741254636923,-457.10032938,0.00012023,2]
[355544853,1741254636935,-331.22,0.00012027,2]
[355544854,1741254636944,-2820.54587124,0.00012038,2]
[355544855,1741254636954,-2649.55969586,0.00012042,2]
[355544856,1741254636964,-550.0,0.00012044,2]
[355544857,1741254636975,-500.0,0.00012067,2]
[355544858,1741254636985,-500.0,0.00012067,2]
[355544859,1741254636999,-971.45,0.00012067,2]
[355544860,1741254637012,-869.09,0.00012067,2]
[355544861,1741254637024,-500.0,0.00012068,2]
[355544862,1741254637036,-542.55,0.00012068,2]
[355544863,1741254637047,-500.0,0.00012068,2]
[355544864,1741254637057,-413.63513669,0.00012068,2]
[355544865,1741254637068,-651.59,0.00012068,2]
[355544866,1741254637079,-500.0,0.00012068,2]
[355544867,1741254637090,-737.35,0.00012068,2]
[355544868,1741254637100,-500.0,0.00012068,2]
[355544869,1741254637111,-500.0,0.00012068,2]
[355544870,1741254637121,-500.0,0.00012068,2]
[355544871,1741254637131,-500.0,0.00012068,2]
[355544872,1741254637142,-500.0,0.00012068,2]
[355544873,1741254637153,-500.0,0.00012068,2]
[355544874,1741254637163,-500.0,0.00012068,2]
[355544875,1741254637174,-500.0,0.00012068,2]
[355544876,1741254637184,-513.17,0.00012068,2]
[355544877,1741254637198,-572.76,0.00012068,2]
[355544878,1741254637208,-500.0,0.00012068,2]
[355544879,1741254637219,-718.46,0.00012068,2]
[355544880,1741254637229,-500.0,0.00012068,2]
[355544881,1741254637240,-500.0,0.00012068,2]
[355544882,1741254637250,-500.0,0.00012068,2]
[355544883,1741254637260,-500.0,0.00012068,2]
[355544884,1741254637271,-532.59,0.00012068,2]
[355544885,1741254637281,-500.0,0.00012068,2]
[355544886,1741254637292,-500.0,0.00012068,2]
[355544887,1741254637302,-793.17,0.00012068,2]
[355544888,1741254637313,-1216.89653,0.00012068,2]
[355544889,1741254637325,-311.53,0.00012068,2]
[355544890,1741254637335,-500.0,0.00012068,2]
[355544891,1741254637346,-500.0,0.00012068,2]
[355544892,1741254637358,-829.91,0.00012068,2]
[355544893,1741254637368,-500.0,0.00012068,2]
[355544894,1741254637379,-500.0,0.00012068,2]
[355544895,1741254637390,-904.48,0.00012068,2]
[355544896,1741254637401,-500.0,0.00012068,2]
[355544897,1741254637412,-509.54,0.00012068,2]
[355544898,1741254637423,-833.318219,0.00012068,2]
[355544899,1741254637433,-500.0,0.00012068,2]
[355544900,1741254637444,-500.0,0.00012068,2]
[355544901,1741254637455,-500.0,0.00012068,2]
[355544902,1741254637466,-500.0,0.00012068,2]
[355544903,1741254637476,-500.0,0.00012068,2]
[355544904,1741254637487,-858.0,0.00012068,2]
[355544905,1741254637498,-811.78,0.00012068,2]
[355544906,1741254637509,-500.0,0.00012068,2]
[355544907,1741254637520,-500.0,0.00012068,2]
[355544908,1741254637531,-500.0,0.00012068,2]
[355544909,1741254637542,-500.0,0.00012068,2]
[355544911,1741254637553,-970.08,0.00012068,2]
[355544913,1741254637563,-500.0,0.00012068,2]
[355544914,1741254637574,-500.0,0.00012068,2]
[355544915,1741254637585,-747.12,0.00012068,2]
[355544916,1741254637596,-214.16,0.00012068,2]
[355544917,1741254637607,-500.0,0.00012068,2]
[355544919,1741254637618,-685.94,0.00012068,2]
[355544920,1741254637628,-500.0,0.00012068,2]
[355544921,1741254637641,-178.38,0.00012068,2]
[355544922,1741254637652,-712.45,0.00012068,2]
[355544923,1741254637663,-746.63,0.00012068,2]
[355544924,1741254637674,-500.0,0.00012068,2]
[355544925,1741254637685,-187.45,0.00012068,2]
[355544926,1741254637696,-741.38,0.00012068,2]
[355544927,1741254637707,-658.79,0.00012068,2]
[355544928,1741254637719,-844.63,0.00012068,2]
[355544929,1741254637730,-1595.36,0.00012068,2]
[355544930,1741254637741,-500.0,0.00012068,2]
[355544931,1741254637752,-568.06,0.00012068,2]
[355544932,1741254637764,-3358.68,0.00012068,2]
[355544933,1741254637775,-2086.3,0.00012068,2]
[355544934,1741254637788,-500.0,0.00012068,2]
[355544935,1741254637802,-1463.75,0.00012068,2]
[355544936,1741254637815,-317.25,0.00012068,2]
[355544937,1741254637827,-500.0,0.00012068,2]
[355544938,1741254637839,-1943.23,0.00012068,2]
[355544939,1741254637850,-494.2654162,0.00012068,2]
[355544940,1741254637863,-500.0,0.00012068,2]
[355544941,1741254637873,-822.34,0.00012068,2]
[355544942,1741254637884,-1411.18,0.00012068,2]
[355544943,1741254637895,-1397.38,0.00012068,2]
[355544944,1741254637906,-2866.45,0.00012068,2]
[355544945,1741254637916,-500.0,0.00012068,2]
[355544946,1741254637927,-3256.74,0.00012068,2]
[355544947,1741254637938,-2536.78,0.00012068,2]
[355544948,1741254637948,-754.01,0.00012068,2]
[355544949,1741254637958,-381.23419715,0.00012068,2]
[355544950,1741254637969,-382.05,0.00012068,2]
[355544951,1741254637979,-612.13,0.00012068,2]
[355544952,1741254637990,-500.0,0.00012068,2]
[355544953,1741254638004,-1075.93,0.00012068,2]
[355544954,1741254638015,-500.0,0.00012068,2]
[355544955,1741254638025,-739.85,0.00012068,2]
[355544956,1741254638036,-2613.71,0.00012068,2]
[355544957,1741254638048,-1647.48,0.00012068,2]
[355544958,1741254638059,-500.0,0.00012068,2]
[355544960,1741254638071,-807.56,0.00012068,2]
[355544962,1741254638082,-764.81,0.00012068,2]
[355544963,1741254638093,-925.31,0.00012068,2]
[355544964,1741254638104,-1340.3,0.00012068,2]
[355544965,1741254638115,-3725.3,0.00012068,2]
[355544966,1741254638126,-604.28,0.00012068,2]
[355544967,1741254638137,-500.0,0.00012068,2]
[355544968,1741254638148,-576.01,0.00012068,2]
[355544969,1741254638160,-500.0,0.00012068,2]
[355544970,1741254638173,-1680.74,0.00012068,2]
[355544971,1741254638184,-500.0,0.00012068,2]
[355544972,1741254638195,-1529.92,0.00012068,2]
[355544973,1741254638206,-500.0,0.00012068,2]
[355544974,1741254638217,-2144.91,0.00012068,2]
[355544975,1741254638228,-1590.98,0.00012068,2]
[355544976,1741254638239,-500.0,0.00012068,2]
[355544977,1741254638251,-500.0,0.00012068,2]
[355544978,1741254638262,-1286.81,0.00012068,2]
[355544979,1741254638272,-591.31,0.00012068,2]
[355544980,1741254638283,-1273.72,0.00012068,2]
[355544981,1741254638294,-1821.97,0.00012068,2]
[355544982,1741254638305,-842.56,0.00012068,2]
[355544983,1741254638316,-177.48,0.00012068,2]
[355544984,1741254638327,-500.0,0.00012068,2]
[355544985,1741254638338,-1291.93,0.00012068,2]
[355544986,1741254638349,-3261.55,0.00012068,2]
[355544987,1741254638360,-500.0,0.00012068,2]
[355544988,1741254638371,-961.5,0.00012068,2]
[355544989,1741254638382,-1529.75,0.00012068,2]
[355544990,1741254638394,-1426.51,0.00012068,2]
[355544991,1741254638404,-500.0,0.00012068,2]
[355544992,1741254638415,-500.0,0.00012068,2]
[355544993,1741254638426,-500.0,0.00012068,2]
[355544994,1741254638437,-500.0,0.00012068,2]
[355544995,1741254638448,-500.0,0.00012068,2]
[355544996,1741254638460,-1250.16,0.00012068,2]
[355544997,1741254638470,-551.52,0.00012068,2]
[355544998,1741254638481,-500.0,0.00012068,2]
[355544999,1741254638491,-500.0,0.00012068,2]
[355545000,1741254638501,-1356.78,0.00012068,2]
[355545001,1741254638511,-1637.08,0.00012068,2]
[355545002,1741254638520,-500.0,0.00012068,2]
[355545003,1741254638529,-2403.8,0.00012068,2]
[355545004,1741254638539,-1381.66,0.00012068,2]
[355545005,1741254638548,-7415.75,0.00012068,2]
[355545006,1741254638558,-339.52519862,0.00012068,2]
[355545007,1741254638569,-1400.44,0.00012068,2]
[355545008,1741254638579,-4061.0,0.00012068,2]
[355545009,1741254638591,-500.0,0.00012068,2]
[355545010,1741254638601,-559.31,0.00012068,2]
[355545011,1741254638611,-1031.65,0.00012068,2]
[355545012,1741254638621,-500.0,0.00012068,2]
[355545013,1741254638632,-500.0,0.00012068,2]
[355545014,1741254638645,-500.0,0.00012068,2]
[355545015,1741254638656,-500.0,0.00012068,2]
[355545016,1741254638666,-1310.17,0.00012068,2]
[355545017,1741254638677,-1084.89,0.00012068,2]
[355545018,1741254638687,-715.35,0.00012068,2]
[355545019,1741254638697,-767.34,0.00012068,2]
[355545020,1741254638708,-611.34312551,0.00012068,2]
[355545021,1741254638718,-1336.65,0.00012068,2]
[355545022,1741254638728,-2663.43,0.00012068,2]
[355545023,1741254638739,-840.85,0.00012068,2]
[355545024,1741254638749,-500.0,0.00012068,2]
[355545025,1741254638759,-965.43,0.00012068,2]
[355545026,1741254638770,-681.09,0.00012068,2]